bitfinex-derivatives/quotes_SOLF0:USTF0_20240912
["timestamp","ask_amount","ask_price","bid_price","bid_amount"]
[1726120201704,11.37,135.49,135.43,1.3092]
[1726120201992,3.3213,135.47,135.43,4.6314]
[1726120202194,11.37,135.49,135.43,4.6314]
[1726120202494,11.37,135.49,135.43,1.3092]
[1726120202694,3.321,135.48,135.43,4.6313]
[1726120203295,3.321,135.48,135.44,3.3219]
[1726120203590,2.5844,135.54,135.43,12.6792]
[1726120203799,11.37,135.51,135.46,3.3214]
[1726120204187,6.20505865,135.54,135.45,11.37]
[1726120204385,11.37,135.52,135.45,11.37]
[1726120204585,11.37,135.52,135.43,1.3092]
[1726120204891,3.3206,135.5,135.45,3.3217]
[1726120205084,3.3206,135.5,135.44,11.37]
[1726120205689,3.3206,135.5,135.45,3.3215]
[1726120207295,6.20505865,135.54,135.47,3.321]
[1726120207496,11.37,135.51,135.44,11.37]
[1726120207890,3.3206,135.5,135.46,3.3214]
[1726120208088,3.3206,135.5,135.44,11.37]
[1726120208286,11.37,135.51,135.44,11.37]
[1726120208488,3.3209,135.49,135.44,14.6918]
[1726120209884,3.3214,135.47,135.43,1.3092]
[1726120210089,11.37,135.47,135.41,1.3254]
[1726120210790,3.3216,135.46,135.41,1.3254]
[1726120211591,3.3216,135.46,135.42,3.3224]
[1726120211798,3.322,135.44,135.39,11.37]
[1726120212095,11.37,135.46,135.39,11.37]
[1726120212692,3.3219,135.45,135.41,3.3227]
[1726120214397,11.37,135.47,135.42,3.3223]
[1726120214589,14.07,135.48,135.4,11.37]
[1726120214790,14.07,135.48,135.42,11.37]
[1726120214791,1.3998,135.48,135.42,11.37]
[1726120214995,11.37,135.51,135.43,11.37]
[1726120215299,6.37998358,135.53,135.43,15.09174036]
[1726120215496,11.37,135.51,135.43,15.09174036]
[1726120215695,11.37,135.51,135.45,11.37]
[1726120215895,14.6903,135.51,135.46,3.3213]
[1726120216594,2.6996,135.53,135.48,3.3208]
[1726120216899,14.0696,135.53,135.46,11.37]
[1726120217398,14.0696,135.53,135.47,11.37]
[1726120217399,1.3049,135.53,135.47,11.37]
[1726120217601,12.6749,135.53,135.47,11.37]
[1726120218492,3.32,135.52,135.47,14.691]
[1726120218693,3.32,135.52,135.47,11.37]
[1726120218998,12.6749,135.53,135.47,11.37]
[1726120219492,12.6749,135.53,135.48,3.3208]
[1726120219493,15.9947,135.53,135.48,3.3208]
[1726120220295,12.6749,135.53,135.47,11.37]
[1726120221194,11.37,135.52,135.44,4.0854]
[1726120221395,11.37,135.52,135.44,15.4554]
[1726120221795,1.3049,135.53,135.45,3.3215]
[1726120221796,3.3207,135.5,135.45,3.3215]
[1726120221990,11.37,135.51,135.44,4.0854]
[1726120222194,11.37,135.51,135.45,11.37]
[1726120223402,14.6903,135.51,135.45,11.37]
[1726120223609,3.3203,135.51,135.45,11.37]
[1726120223806,1.3049,135.53,135.46,11.37]
[1726120224104,3.3202,135.52,135.47,3.3212]
[1726120224605,12.6749,135.53,135.47,3.3212]
[1726120225806,3.3203,135.51,135.47,3.3212]
[1726120226512,3.3203,135.51,135.46,14.6914]
[1726120227406,3.3203,135.51,135.47,3.3212]
[1726120229307,12.6749,135.53,135.47,3.3212]
[1726120229308,3.32,135.52,135.47,3.3212]
[1726120229509,12.6749,135.53,135.47,3.3212]
[1726120230107,3.3201,135.52,135.47,3.3212]
[1726120232707,3.3201,135.52,135.47,7.06851776]
[1726120233514,3.3204,135.51,135.46,14.6913]
[1726120233814,3.3204,135.51,135.46,3.3213]
[1726120234006,3.3204,135.51,135.46,7.0737798]
[1726120234817,3.3205,135.5,135.46,7.0737798]
[1726120235410,3.3207,135.49,135.46,7.0737798]
[1726120236309,11.37,135.51,135.44,4.0854]
[1726120236310,3.321,135.48,135.44,4.0854]
[1726120236514,3.321,135.48,135.44,14.0555]
[1726120236816,3.321,135.48,135.45,3.7506342]
[1726120237521,3.321,135.48,135.44,17.3773]
[1726120237815,3.3215,135.46,135.44,1.3785]
[1726120238025,11.37,135.48,135.41,11.37]
[1726120238205,11.37,135.48,135.41,15.09295015]
[1726120238411,11.37,135.48,135.42,11.37]
[1726120238617,3.3213,135.47,135.43,3.3222]
[1726120238813,3.3213,135.47,135.43,6.94474936]
[1726120239117,3.3213,135.47,135.43,3.3222]
[1726120239724,3.3213,135.47,135.43,7.05253257]
[1726120239914,3.3216,135.46,135.43,3.73033257]
[1726120240310,11.37,135.48,135.42,14.6924]
[1726120240514,11.37,135.47,135.41,14.6926]
[1726120240721,11.37,135.47,135.41,18.41563663]
[1726120241217,3.322,135.44,135.41,15.09303663]
[1726120241416,3.322,135.44,135.4,14.6929]
[1726120241618,3.322,135.44,135.41,3.74666558]
[1726120241915,48.43748457,135.66,135.43,11.37]
[1726120242119,11.37,135.5,135.43,11.37]
[1726120242713,3.3212,135.48,135.43,14.692]
[1726120243424,3.3212,135.48,135.44,3.3219]
[1726120243828,3.3208,135.49,135.43,11.37]
[1726120244017,3.3208,135.49,135.45,3.3217]
[1726120244825,3.3208,135.49,135.43,11.37]
[1726120245320,3.321,135.48,135.44,3.3219]
[1726120246027,1.3748,135.52,135.46,11.37]
[1726120247023,11.37,135.51,135.44,11.37]
[1726120247628,3.3208,135.49,135.44,14.6919]
[1726120248617,3.3208,135.49,135.44,3.3219]
[1726120248822,3.3208,135.49,135.44,14.6919]
[1726120250927,3.3206,135.5,135.45,3.3215]
[1726120251222,228.0,135.62,135.48,11.37]
[1726120251223,12.7992,135.55,135.48,11.37]
[1726120251428,12.7992,135.55,135.49,3.6972886]
[1726120252018,1.4292,135.55,135.49,3.6972886]
[1726120252531,3.3198,135.53,135.49,7.0178886]
[1726120252823,12.7992,135.55,135.49,3.3206]
[1726120253036,14.2153,135.55,135.49,3.3206]
[1726120253425,11.37,135.53,135.48,3.3209]
[1726120253627,3.3201,135.52,135.48,3.3209]
[1726120254626,3.3201,135.52,135.49,3.3207]
[1726120255032,228.0,135.67,135.51,11.37]
[1726120255333,5.03010624,135.65,135.53,11.37]
[1726120255534,11.37,135.6,135.53,11.37]
[1726120255837,11.37,135.6,135.52,1.315]
[1726120256033,11.37,135.6,135.52,12.685]
[1726120256231,17.71,135.61,135.54,3.3193]
[1726120256432,1.3234,135.6,135.54,3.3193]
[1726120256628,1.3234,135.6,135.52,1.315]
[1726120256834,1.3234,135.6,135.54,3.3194]
[1726120257037,2.6107,135.6,135.54,3.3194]
[1726120258226,2.6107,135.6,135.55,3.3192]
[1726120258431,2.6107,135.6,135.52,1.315]
[1726120260432,2.6107,135.6,135.55,3.3192]
[1726120261640,2.6107,135.6,135.56,3.319]
[1726120261844,2.6107,135.6,135.52,1.315]
[1726120262442,2.6107,135.6,135.55,3.3192]
[1726120263939,2.6107,135.6,135.54,3.3194]
[1726120264537,2.6107,135.6,135.55,3.3192]
[1726120269952,2.6107,135.6,135.52,19.025]
[1726120270248,2.6107,135.6,135.56,3.319]
[1726120270450,2.6107,135.6,135.52,1.315]
[1726120270648,2.6107,135.6,135.54,3.3194]
[1726120270649,3.71143468,135.59,135.54,3.3194]
[1726120271751,3.71143468,135.59,135.53,3.3197]
[1726120271953,2.6107,135.6,135.52,1.315]
[1726120272850,1.15135052,135.59,135.52,1.315]
[1726120273051,3.67296811,135.58,135.53,3.3197]
[1726120273451,2.6107,135.6,135.53,3.3197]
[1726120273649,1.15134439,135.59,135.53,3.3197]
[1726120273952,3.6696475,135.58,135.53,3.3197]
[1726120274449,2.6107,135.6,135.53,3.3197]
[1726120274651,1.15134253,135.59,135.53,3.3197]
[1726120274845,3.77295549,135.58,135.53,3.3197]
[1726120275246,2.6107,135.6,135.53,3.3197]
[1726120275450,1.15137241,135.59,135.53,3.3197]
[1726120275652,3.768528,135.58,135.53,3.3197]
[1726120275848,3.768528,135.58,135.52,4.6349]
[1726120276049,2.6107,135.6,135.52,4.6349]
[1726120276253,11.34,135.57,135.52,1.315]
[1726120276449,15.0559467,135.57,135.52,1.315]
[1726120276650,15.0559467,135.57,135.52,4.635]
[1726120277551,11.34,135.55,135.49,11.34]
[1726120277860,11.34,135.54,135.48,4.6732]
[1726120278052,11.34,135.53,135.48,1.3524]
[1726120278751,15.07661135,135.53,135.48,1.3524]
[1726120278946,11.34,135.53,135.48,1.3524]
[1726120279852,16.37257845,135.54,135.48,1.3524]
[1726120280157,16.37257845,135.54,135.49,3.3206]
[1726120283659,16.37257845,135.54,135.48,1.3524]
[1726120284452,16.37257845,135.54,135.5,3.3205]
[1726120284963,16.37257845,135.54,135.48,1.3524]
[1726120285454,11.34,135.51,135.43,2.6357]
[1726120285661,5.03257845,135.54,135.37,1.4096]
[1726120285662,1.3397,135.53,135.37,1.4096]
[1726120285851,1.1675,135.5,135.37,1.4096]
[1726120286051,1.1675,135.5,135.38,11.34]
[1726120286363,11.34,135.46,135.4,3.3229]
[1726120286872,11.34,135.47,135.4,3.3229]
[1726120287558,14.98497332,135.47,135.4,3.3229]
[1726120287757,3.64497332,135.47,135.4,3.3229]
[1726120288065,11.34,135.46,135.4,3.3229]
[1726120288558,11.34,135.46,135.38,14.6632]
[1726120288859,11.34,135.46,135.38,11.34]
[1726120289060,3.64497332,135.47,135.37,1.4096]
[1726120289061,11.34,135.42,135.37,1.4096]
[1726120290154,11.34,135.41,135.37,1.4096]
[1726120290452,11.34,135.39,135.32,11.34]
[1726120290663,11.34,135.38,135.32,11.34]
[1726120290857,11.34,135.38,135.32,14.6649]
[1726120291558,11.34,135.38,135.33,3.3246]
[1726120292155,1.3709,135.4,135.33,4.6197]
[1726120292551,1.3709,135.4,135.34,3.3243]
[1726120293167,17.74,135.39,135.31,3.325]
[1726120293357,17.74,135.39,135.27,20.4301]
[1726120294055,17.74,135.39,135.27,24.17140628]
[1726120294254,17.74,135.39,135.31,3.3251]
[1726120294460,17.74,135.39,135.27,24.17140628]
[1726120295568,17.74,135.39,135.3,3.3252]
[1726120295870,17.74,135.39,135.27,24.17140628]
[1726120296072,17.74,135.37,135.27,20.4301]
[1726120296760,17.74,135.37,135.29,3.3256]
[1726120296967,17.74,135.37,135.27,20.4301]
[1726120297358,17.74,135.37,135.27,2.6901]
[1726120297563,1.3837,135.36,135.27,2.6901]
[1726120297964,5.08434963,135.36,135.28,3.3259]
[1726120298160,1.3837,135.36,135.28,3.3259]
[1726120298360,1.3837,135.36,135.31,3.3251]
[1726120298559,17.74,135.39,135.27,20.4301]
[1726120298866,19.1114,135.39,135.27,20.4301]
[1726120299068,19.1114,135.39,135.29,3.3254]
[1726120299467,19.1114,135.39,135.27,20.4301]
[1726120300268,19.1114,135.39,135.31,3.3251]
[1726120301262,19.1114,135.39,135.28,3.3257]
[1726120301467,19.1114,135.39,135.27,20.4301]
[1726120301671,17.74,135.37,135.27,20.4301]
[1726120301854,19.1114,135.39,135.27,20.4301]
[1726120302061,19.1114,135.39,135.3,3.3252]
[1726120302062,17.74,135.37,135.3,3.3252]
[1726120302768,3.72994063,135.36,135.27,2.6901]
[1726120302963,17.74,135.34,135.27,1.2951]
[1726120303671,1.3553,135.33,135.27,1.2951]
[1726120303862,2.6433,135.33,135.27,1.2951]
[1726120304368,17.74,135.32,135.27,1.2951]
[1726120305661,1.3553,135.33,135.27,1.2951]
[1726120306063,1.3553,135.33,135.28,3.3259]
[1726120306865,1.3553,135.33,135.27,4.6212]
[1726120307073,1.3553,135.33,135.27,1.2951]
[1726120307969,17.74,135.32,135.22,3.71368012]
[1726120308273,17.74,135.32,135.23,1.3557]
[1726120308472,19.0475,135.32,135.23,1.3557]
[1726120308779,19.0475,135.32,135.25,3.3265]
[1726120309666,19.0475,135.32,135.24,3.3268]
[1726120311076,19.0475,135.32,135.23,4.6827]
[1726120311077,17.74,135.3,135.23,4.6827]
[1726120313270,17.74,135.3,135.24,3.3268]
[1726120313974,17.74,135.3,135.23,4.6827]
[1726120314275,19.0475,135.32,135.23,1.3557]
[1726120314474,19.0475,135.32,135.24,3.3267]
[1726120315069,19.0475,135.32,135.23,4.6827]
[1726120315380,17.74,135.3,135.23,1.3557]
[1726120316571,17.74,135.3,135.24,3.3269]
[1726120317669,19.0475,135.32,135.24,3.3269]
[1726120319679,19.0475,135.32,135.23,4.6827]
[1726120319880,17.74,135.3,135.23,4.6827]
[1726120320379,17.74,135.28,135.21,3.3276]
[1726120321779,1.3075,135.32,135.22,3.3274]
[1726120321981,17.74,135.28,135.22,3.3274]
[1726120323379,1.3524,135.27,135.21,3.3275]
[1726120323572,17.74,135.28,135.16,17.74]
[1726120323975,17.74,135.28,135.22,3.3272]
[1726120324873,17.74,135.28,135.16,17.74]
[1726120325477,17.74,135.28,135.21,3.3275]
[1726120325783,17.74,135.26,135.16,17.74]
[1726120326184,17.74,135.26,135.19,3.3281]
[1726120326370,17.74,135.24,135.15,4.1838]
[1726120326775,17.74,135.24,135.18,3.3282]
[1726120327278,17.74,135.24,135.16,3.3288]
[1726120327583,17.74,135.24,135.15,4.1838]
[1726120328676,17.74,135.24,135.18,3.3282]
[1726120330186,17.74,135.24,135.19,3.3281]
[1726120331389,17.74,135.24,135.18,3.3283]
[1726120331876,17.74,135.24,135.15,4.1838]
[1726120332477,17.74,135.24,135.15,2.7702]
[1726120332684,17.74,135.24,135.15,1.3708]
[1726120333287,17.74,135.22,135.15,1.3708]
[1726120333590,17.74,135.22,135.16,3.3287]
[1726120334381,3.3277,135.21,135.16,3.3287]
[1726120334585,4.6137,135.21,135.16,3.3287]
[1726120335091,4.6137,135.21,135.17,3.3285]
[1726120337490,1.286,135.21,135.15,1.3708]
[1726120338083,12.656,135.21,135.17,3.3284]
[1726120338691,15.9836,135.21,135.17,3.3284]
[1726120341293,1.286,135.21,135.15,1.3708]
[1726120341491,11.37,135.22,135.16,11.37]
[1726120342086,11.37,135.23,135.16,11.37]
[1726120342286,12.6685,135.24,135.17,11.37]
[1726120342786,12.6685,135.24,135.2,3.3278]
[1726120343282,12.6685,135.24,135.17,11.37]
[1726120343485,12.6685,135.24,135.19,3.3279]
[1726120343688,12.6685,135.24,135.17,11.37]
[1726120343887,1.2985,135.24,135.19,11.37]
[1726120344490,12.6685,135.24,135.17,11.37]
[1726120344895,12.6685,135.24,135.19,3.3279]
[1726120347391,11.37,135.22,135.19,3.3279]
[1726120348699,11.37,135.22,135.18,3.3283]
[1726120349202,11.37,135.22,135.16,11.37]
[1726120349693,11.37,135.22,135.18,3.3282]
[1726120350293,11.37,135.22,135.19,3.328]
[1726120351301,11.37,135.22,135.18,3.3283]
[1726120351699,11.37,135.22,135.19,3.3281]
[1726120352496,11.37,135.22,135.18,3.3283]
[1726120352990,11.37,135.22,135.15,12.7408]
[1726120353597,11.37,135.22,135.17,3.3284]
[1726120354001,11.37,135.22,135.15,12.7408]
[1726120354201,11.37,135.21,135.15,12.7408]
[1726120354603,11.37,135.21,135.18,3.3282]
[1726120356898,11.37,135.22,135.18,3.3282]
[1726120357104,1.2985,135.24,135.19,3.3279]
[1726120357298,11.37,135.23,135.19,3.3279]
[1726120358394,11.37,135.23,135.15,1.3708]
[1726120358604,11.37,135.21,135.15,1.3708]
[1726120358904,11.37,135.21,135.17,3.3284]
[1726120359107,11.37,135.21,135.15,1.3708]
[1726120359599,3.3279,135.2,135.16,3.3287]
[1726120359901,14.6979,135.2,135.16,3.3287]
[1726120360103,11.37,135.2,135.18,3.3282]
[1726120360503,11.37,135.2,135.15,1.3708]
[1726120360807,14.698,135.2,135.16,3.3287]
[1726120361600,14.698,135.2,135.08,2.8166]
[1726120361601,11.37,135.17,134.89,3.41691532]
[1726120361797,11.37,135.03,134.98,1.4251]
[1726120362005,11.37,135.03,134.98,5.11895147]
[1726120362200,11.37,135.03,134.98,1.4251]
[1726120362800,11.37,135.05,134.98,12.7951]
[1726120363601,3.3321,135.03,134.98,12.7951]
[1726120364099,3.3321,135.03,134.98,1.4251]
[1726120365204,3.3323,135.02,134.98,1.4251]
[1726120369108,17.78,135.05,134.98,1.4251]
[1726120369307,17.78,135.02,134.92,17.78]
[1726120369504,3.333,135.0,134.92,17.78]
[1726120370105,3.333,135.0,134.92,21.5267492]
[1726120370998,3.3331,134.99,134.92,21.5267492]
[1726120371805,3.3331,134.99,134.94,3.3342]
[1726120372019,3.3333,134.98,134.9,4.0371]
[1726120372312,17.78,135.0,134.9,4.0371]
[1726120372806,17.78,135.0,134.91,3.6893235]
[1726120373007,3.3337,134.97,134.92,3.3347]
[1726120373209,3.3337,134.97,134.9,4.0371]
[1726120373410,3.3337,134.97,134.9,7.78255193]
[1726120373900,3.3337,134.97,134.92,3.3347]
[1726120374910,17.78,134.98,134.9,7.78255193]
[1726120376913,3.334,134.96,134.91,3.3349]
[1726120378225,17.78,134.98,134.92,3.3347]
[1726120378512,17.78,134.98,134.9,7.82535546]
[1726120378717,21.1135,134.98,134.93,3.3344]
[1726120379101,21.1135,134.98,134.9,7.82535546]
[1726120379308,3.3332,134.99,134.9,25.60535546]
[1726120379719,1.3005,135.0,134.9,25.60535546]
[1726120380013,3.3335,134.98,134.9,7.82535546]
[1726120380606,3.3336,134.97,134.92,3.3347]
[1726120381104,1.3005,135.0,134.9,7.82535546]
[1726120381314,1.3005,135.0,134.91,17.78]
[1726120381811,1.3005,135.0,134.96,3.3337]
[1726120382704,3.3326,135.01,134.91,17.78]
[1726120383109,17.78,135.02,134.97,3.3334]
[1726120383110,3.3325,135.02,134.97,3.3334]
[1726120383313,19.1159,135.04,134.91,17.78]
[1726120383816,3.3327,135.01,134.96,3.3335]
[1726120384210,3.3327,135.01,134.91,17.78]
[1726120384415,3.3327,135.01,134.96,3.3336]
[1726120384716,3.3327,135.01,134.91,17.78]
[1726120385421,3.3327,135.01,134.97,3.3333]
[1726120386211,3.3323,135.02,134.98,3.3332]
[1726120387016,3.3325,135.01,134.98,3.3332]
[1726120387205,3.3325,135.01,134.97,3.3335]
[1726120388825,3.3328,135.0,134.96,3.3337]
[1726120389906,3.333,135.0,134.96,3.3337]
[1726120390115,19.1159,135.04,134.95,3.3339]
[1726120390415,17.78,135.02,134.95,3.3339]
[1726120390811,3.3332,134.99,134.95,3.3339]
[1726120391018,17.78,135.02,134.95,3.3339]
[1726120391220,3.333,135.0,134.95,3.3339]
[1726120392221,11.39,134.98,134.95,3.3339]
[1726120394220,3.333,135.0,134.95,3.3339]
[1726120394823,17.79,135.01,134.94,3.3342]
[1726120395121,1.358,135.0,134.94,3.3342]
[1726120395718,3.3331,134.99,134.94,3.3342]
[1726120396723,3.3331,134.99,134.94,15.3342]
[1726120397325,1.358,135.0,134.94,12.0]
[1726120397826,1.358,135.0,134.96,3.3336]
[1726120398418,4.6908,135.0,134.96,3.3336]
[1726120398612,4.6908,135.0,134.95,3.334]
[1726120399416,4.6908,135.0,134.96,3.3337]
[1726120399619,1.358,135.0,134.96,3.3337]
[1726120400420,3.3324,135.02,134.97,3.3334]
[1726120400619,19.1596,135.03,134.97,3.3334]
[1726120401819,3.3325,135.01,134.97,3.3334]
[1726120402927,3.3325,135.02,134.97,3.3334]
[1726120403722,22.4916,135.03,134.98,3.3331]
[1726120404122,19.1596,135.03,134.98,3.3331]
[1726120405129,3.3323,135.02,134.97,3.3334]
[1726120405630,3.3326,135.01,134.97,3.3334]
[1726120406823,3.3324,135.02,134.97,3.3334]
[1726120408234,3.3326,135.01,134.97,3.3334]
[1726120408426,21.1226,135.01,134.96,3.3337]
[1726120408730,17.79,135.01,134.96,3.3337]
[1726120409924,3.3328,135.0,134.96,3.3337]
[1726120410335,21.1227,135.01,134.96,3.3337]
[1726120412035,21.1227,135.01,134.97,3.3335]
[1726120412530,3.3324,135.02,134.98,3.3331]
[1726120413630,22.4917,135.03,134.98,3.3331]
[1726120414536,22.4917,135.03,134.99,3.333]
[1726120416236,11.38,135.01,134.99,3.333]
[1726120416832,11.38,135.01,134.98,3.3332]
[1726120418337,11.38,134.99,134.96,3.3337]
[1726120419337,1.3696,135.03,134.96,3.3337]
[1726120419338,11.38,134.98,134.96,3.3337]
[1726120421134,11.38,134.98,134.94,12.0]
[1726120421637,11.38,135.0,134.94,12.0]
[1726120421839,3.3331,134.99,134.94,12.0]
[1726120422032,3.3331,134.99,134.96,3.3338]
[1726120422833,11.38,134.98,134.95,3.3339]
[1726120424235,14.7133,134.98,134.95,3.3339]
[1726120424745,11.38,134.99,134.94,12.0]
[1726120425537,11.38,134.99,134.96,3.3338]
[1726120427943,11.38,134.99,134.94,12.0]
[1726120428248,11.38,135.0,134.94,12.0]
[1726120429046,11.38,135.0,134.97,3.3333]
[1726120429248,11.38,135.0,134.94,12.0]
[1726120430858,11.38,135.0,134.98,3.3332]
[1726120433659,11.38,135.0,134.97,3.3334]
[1726120436470,11.38,135.0,134.94,12.0]
[1726120437071,11.38,135.0,134.98,3.3331]
[1726120437568,11.38,135.0,134.99,3.333]
[1726120437774,1.3829,135.03,134.99,3.333]
[1726120437961,11.38,135.01,134.99,3.333]
[1726120440176,11.38,135.01,134.96,1.3727]
[1726120440872,4.7151,135.03,134.97,11.38]
[1726120440873,11.38,135.03,134.97,11.38]
[1726120441271,11.38,135.03,134.97,15.0978511]
[1726120442373,11.38,135.03,135.0,3.3326]
[1726120445574,11.38,135.03,134.97,15.0978511]
[1726120446174,11.38,135.03,135.0,3.3326]
[1726120446869,11.38,135.02,134.96,1.3727]
[1726120447477,14.7125,135.02,134.96,1.3727]
[1726120447673,14.7125,135.02,134.98,3.3331]
[1726120449078,3.3326,135.01,134.98,3.3331]
[1726120449378,11.38,135.0,134.97,3.3335]
[1726120451181,11.38,135.0,134.98,3.3332]
[1726120454880,3.3322,135.03,134.99,3.3329]
[1726120455085,11.38,135.02,134.95,11.38]
[1726120455279,11.38,135.02,134.94,23.38]
[1726120455476,14.7125,135.02,134.98,3.3331]
[1726120457689,11.38,135.02,134.99,3.3329]
[1726120458277,11.38,135.02,135.0,3.3327]
[1726120465187,11.38,135.02,134.99,3.333]
[1726120465779,14.7123,135.02,134.99,3.333]
[1726120465983,11.38,135.01,134.98,3.3332]
[1726120466983,11.38,135.01,134.96,3.3337]
[1726120467187,11.38,135.0,134.94,12.0]
[1726120467778,11.38,135.0,134.98,3.3332]
[1726120470692,11.38,135.0,134.97,3.3334]
[1726120473689,11.38,135.0,134.98,3.3332]
[1726120476884,11.38,135.0,134.99,3.333]
[1726120477091,11.38,135.02,134.99,3.333]
[1726120478396,14.7123,135.02,134.99,3.333]
[1726120478599,11.38,135.0,134.94,12.0]
[1726120479484,14.7128,135.0,134.96,3.3337]
[1726120479994,11.38,135.0,134.94,12.0]
[1726120480193,11.38,135.0,134.97,3.3334]
[1726120480997,11.38,135.0,134.94,23.38]
[1726120482901,11.38,135.0,134.98,3.3331]
[1726120485103,11.38,135.0,134.97,3.3335]
[1726120485901,11.38,135.0,134.98,3.3332]
[1726120487599,11.38,135.0,134.99,3.333]
[1726120489211,11.38,135.0,134.98,3.3332]
[1726120490008,11.38,135.0,134.97,3.3334]
[1726120490811,11.38,135.0,134.98,3.3332]
[1726120494108,11.38,135.0,134.99,3.333]
[1726120494907,11.38,135.0,134.98,3.3331]
[1726120498309,11.38,135.0,134.99,3.333]
[1726120499908,3.3325,135.02,134.99,3.333]
[1726120499909,14.7125,135.02,134.99,3.333]
[1726120501912,14.7125,135.02,134.94,23.38]
[1726120501913,14.7125,135.02,134.98,3.3332]
[1726120503715,32.85552235,135.02,134.98,3.3332]
[1726120503918,14.7125,135.02,134.98,3.3332]
[1726120504213,3.3326,135.01,134.98,3.3332]
[1726120504520,11.38,135.02,134.98,3.3332]
[1726120504921,14.7125,135.02,134.98,3.3332]
[1726120505120,11.38,135.0,134.97,3.3334]
[1726120505323,14.7129,135.0,134.94,12.0]
[1726120505527,11.38,134.95,134.94,12.0]
[1726120505821,11.38,134.95,134.88,1.4127]
[1726120506031,11.38,134.9,134.86,3.62596998]
[1726120506215,3.9204,134.99,134.86,3.62596998]
[1726120506216,11.38,134.92,134.86,3.62596998]
[1726120506416,11.38,134.92,134.86,5.03866998]
[1726120506724,11.38,134.92,134.89,3.3353]
[1726120507026,11.38,134.93,134.86,16.41866998]
[1726120507417,11.38,134.93,134.89,3.3354]
[1726120507713,11.38,134.96,134.89,11.38]
[1726120507917,11.38,134.97,134.9,14.1673]
[1726120508115,18.14705505,135.04,134.91,12.7976]
[1726120508316,11.38,134.99,134.94,3.0]
[1726120508519,11.38,134.99,134.95,3.3338]
[1726120508921,11.38,134.98,134.95,3.3338]
[1726120509112,11.38,134.98,134.94,3.0]
[1726120509317,11.38,134.96,134.94,3.0]
[1726120511327,11.38,134.96,134.94,6.3342]
[1726120513833,11.38,134.95,134.94,3.0]
[1726120522240,14.714,134.95,134.94,3.0]
[1726120522442,11.38,134.95,134.94,3.0]
[1726120526946,14.714,134.95,134.94,3.0]
[1726120527147,11.38,134.95,134.94,3.0]
[1726120527341,14.714,134.95,134.94,3.0]
[1726120528240,3.3346,134.93,134.89,3.3355]
[1726120528433,4.97829982,134.99,134.87,3.9729]
[1726120528434,11.38,134.91,134.87,3.9729]
[1726120528640,11.38,134.91,134.88,3.3356]
[1726120528942,11.38,134.91,134.87,3.9729]
[1726120529335,11.38,134.91,134.88,3.3357]
[1726120529541,11.38,134.91,134.87,3.9729]
[1726120529940,11.38,134.91,134.88,3.3356]
[1726120531641,11.38,134.91,134.89,3.3354]